[Event "Titled Tuesday Blitz May 9 Early 2023"]
[White "Kleiman, Jake"]
[Black "Visakh N R"]
[WhiteFideId "2020041"]
[BlackFideId "25012223"]
[WhiteElo "2597"]
[BlackElo "2466"]
[Result "0-1"]
[Round "05"]
[TimeControl "180+2"]
[Date "2023.05.09"]
[WhiteClock "0:00:02"]
[BlackClock "0:01:26"]

1. e4 {[%clk 0:02:59]}  c5 {[%clk 0:02:44]} 2. c3 {[%clk 0:02:59]}  Nf6 {[%clk 0:02:39]} 3. e5 {[%clk 0:03:00]}  Nd5 {[%clk 0:02:39]} 4. Bc4 {[%clk 0:03:00]}  e6 {[%clk 0:02:38]} 5. Nf3 {[%clk 0:03:00]}  d6 {[%clk 0:02:37]} 6. d4 {[%clk 0:03:00]}  cxd4 {[%clk 0:02:37]} 7. cxd4 {[%clk 0:03:01]}  Nb6 {[%clk 0:02:37]} 8. Bd3 {[%clk 0:02:52]}  dxe5 {[%clk 0:02:36]} 9. dxe5 {[%clk 0:02:53]}  Bb4+ {[%clk 0:02:36]} 10. Nc3 {[%clk 0:02:52]}  Nd5 {[%clk 0:02:30]} 11. O-O {[%clk 0:02:45]}  Nxc3 {[%clk 0:02:28]} 12. bxc3 {[%clk 0:02:45]}  Be7 {[%clk 0:02:28]} 13. Qe2 {[%clk 0:02:39]}  Nd7 {[%clk 0:02:15]} 14. Rd1 {[%clk 0:02:12]}  Qc7 {[%clk 0:02:15]} 15. Qe4 {[%clk 0:01:57]}  Nc5 {[%clk 0:02:09]} 16. Bb5+ {[%clk 0:01:34]}  Bd7 {[%clk 0:02:09]} 17. Bxd7+ {[%clk 0:01:34]}  Qxd7 {[%clk 0:02:07]} 18. Rxd7 {[%clk 0:01:25]}  Nxe4 {[%clk 0:02:07]} 19. Rxb7 {[%clk 0:01:26]}  Nxc3 {[%clk 0:02:08]} 20. Be3 {[%clk 0:01:21]}  a5 {[%clk 0:02:00]} 21. Rc1 {[%clk 0:00:55]}  Ne2+ {[%clk 0:02:00]} 22. Kf1 {[%clk 0:00:54]}  Nxc1 {[%clk 0:02:00]} 23. Bxc1 {[%clk 0:00:55]}  Rc8 {[%clk 0:01:50]} 24. Bd2 {[%clk 0:00:53]}  Bb4 {[%clk 0:01:50]} 25. Bxb4 {[%clk 0:00:45]}  axb4 {[%clk 0:01:51]} 26. Rxb4 {[%clk 0:00:45]}  Rc1+ {[%clk 0:01:51]} 27. Ke2 {[%clk 0:00:45]}  O-O {[%clk 0:01:51]} 28. Rb2 {[%clk 0:00:32]}  Ra8 {[%clk 0:01:50]} 29. Nd2 {[%clk 0:00:27]}  Ra1 {[%clk 0:01:48]} 30. Rb3 {[%clk 0:00:26]}  R1xa2 {[%clk 0:01:47]} 31. Rd3 {[%clk 0:00:26]}  h5 {[%clk 0:01:47]} 32. h4 {[%clk 0:00:26]}  R8a5 {[%clk 0:01:46]} 33. f4 {[%clk 0:00:26]}  Rd5 {[%clk 0:01:40]} 34. Rxd5 {[%clk 0:00:19]}  exd5 {[%clk 0:01:41]} 35. Ke3 {[%clk 0:00:20]}  f6 {[%clk 0:01:40]} 36. exf6 {[%clk 0:00:10]}  gxf6 {[%clk 0:01:40]} 37. g3 {[%clk 0:00:11]}  Kf7 {[%clk 0:01:38]} 38. Nf1 {[%clk 0:00:08]}  Ke6 {[%clk 0:01:37]} 39. Kf3 {[%clk 0:00:05]}  f5 {[%clk 0:01:36]} 40. Ke3 {[%clk 0:00:03]}  Kd6 {[%clk 0:01:36]} 41. Nd2 {[%clk 0:00:04]}  d4+ {[%clk 0:01:35]} 42. Kd3 {[%clk 0:00:04]}  Rxd2+ {[%clk 0:01:33]} 43. Kxd2 {[%clk 0:00:04]}  Kc5 {[%clk 0:01:34]} 44. Kc2 {[%clk 0:00:03]}  Kc4 {[%clk 0:01:33]} 45. Kd2 {[%clk 0:00:04]}  d3 {[%clk 0:01:33]} 46. g4 {[%clk 0:00:04]}  fxg4 {[%clk 0:01:28]} 47. f5 {[%clk 0:00:04]}  g3 {[%clk 0:01:26]} 48. f6 {[%clk 0:00:04]}  g2 {[%clk 0:01:26]} 49. f7 {[%clk 0:00:03]}  g1=Q {[%clk 0:01:26]} 50. f8=Q {[%clk 0:00:04]}  Qg2+ {[%clk 0:01:26]} 51. Kd1 {[%clk 0:00:02]}  Qe2+ {[%clk 0:01:26]} 0-1


[Site "https://www.chess.com"]

[Event "Titled Tuesday Blitz May 9 Early 2023"]
[White "Omranalhosani21"]
[Black "Sokolovsky, Yahli"]
[BlackFideId "2820242"]
[WhiteElo "2596"]
[BlackElo "2389"]
[Result "0-1"]
[Round "05"]
[TimeControl "180+2"]
[Date "2023.05.09"]
[WhiteClock "0:00:00"]
[BlackClock "0:00:17"]

1. e4 {[%clk 0:02:59]}  d6 {[%clk 0:03:00]} 2. d4 {[%clk 0:02:58]}  Nf6 {[%clk 0:03:01]} 3. Nc3 {[%clk 0:02:59]}  g6 {[%clk 0:03:01]} 4. Be3 {[%clk 0:02:59]}  a6 {[%clk 0:03:00]} 5. f3 {[%clk 0:02:57]}  b5 {[%clk 0:03:00]} 6. Qd2 {[%clk 0:02:57]}  Bb7 {[%clk 0:03:00]} 7. O-O-O {[%clk 0:02:57]}  Nbd7 {[%clk 0:03:00]} 8. h4 {[%clk 0:02:56]}  h5 {[%clk 0:03:01]} 9. Kb1 {[%clk 0:02:55]}  Rc8 {[%clk 0:02:57]} 10. Rh3 {[%clk 0:02:33]}  Bg7 {[%clk 0:02:56]} 11. Rg3 {[%clk 0:02:30]}  b4 {[%clk 0:02:26]} 12. Nce2 {[%clk 0:02:28]}  c5 {[%clk 0:02:05]} 13. dxc5 {[%clk 0:02:19]}  Nxc5 {[%clk 0:02:06]} 14. Nh3 {[%clk 0:02:03]}  Bxe4 {[%clk 0:01:10]} 15. fxe4 {[%clk 0:01:15]}  Nfxe4 {[%clk 0:01:11]} 16. Qe1 {[%clk 0:01:01]}  Na4 {[%clk 0:00:37]} 17. Qxb4 {[%clk 0:00:37]}  Nac3+ {[%clk 0:00:22]} 18. Nxc3 {[%clk 0:00:25]}  Nxc3+ {[%clk 0:00:22]} 19. Ka1 {[%clk 0:00:14]}  Nxd1 {[%clk 0:00:19]} 20. Bd4 {[%clk 0:00:03]}  e5 {[%clk 0:00:18]} 21. Bc3 {[%clk 0:00:02]}  Nxc3 {[%clk 0:00:17]} 22. Rxc3 {[%clk 0:00:03]}  O-O {[%clk 0:00:17]} 23. Rb3 {[%clk 0:00:03]}  Rxc2 {[%clk 0:00:16]} 24. a3 {[%clk 0:00:03]}  Rc1+ {[%clk 0:00:16]} 25. Ka2 {[%clk 0:00:04]}  Rxf1 {[%clk 0:00:16]} 26. Ng5 {[%clk 0:00:04]}  Qf6 {[%clk 0:00:16]} 27. Qc4 {[%clk 0:00:04]}  Bh6 {[%clk 0:00:16]} 28. Ne4 {[%clk 0:00:04]}  Qf4 {[%clk 0:00:16]} 29. Qd5 {[%clk 0:00:04]}  Bg7 {[%clk 0:00:15]} 30. Nxd6 {[%clk 0:00:03]}  Qc1 {[%clk 0:00:15]} 31. Rb7 {[%clk 0:00:03]}  Qb1+ {[%clk 0:00:15]} 32. Kb3 {[%clk 0:00:03]}  Rd1 {[%clk 0:00:16]} 33. Qc5 {[%clk 0:00:02]}  Qd3+ {[%clk 0:00:16]} 34. Ka2 {[%clk 0:00:00]}  Qxd6 {[%clk 0:00:17]} 0-1


[Site "https://www.chess.com"]

[Event "Titled Tuesday Blitz May 9 Early 2023"]
[White "Kaasen, Tor Fredrik"]
[Black "Sharapov, Evgeny"]
[WhiteFideId "1516647"]
[BlackFideId "14103133"]
[WhiteElo "2349"]
[BlackElo "2367"]
[Result "0-1"]
[Round "05"]
[TimeControl "180+2"]
[Date "2023.05.09"]
[WhiteClock "0:00:00"]
[BlackClock "0:00:09"]

1. e4 {[%clk 0:03:00]}  c5 {[%clk 0:02:58]} 2. Nf3 {[%clk 0:03:00]}  d6 {[%clk 0:02:58]} 3. d4 {[%clk 0:03:01]}  cxd4 {[%clk 0:02:58]} 4. Nxd4 {[%clk 0:03:01]}  Nf6 {[%clk 0:02:59]} 5. Nc3 {[%clk 0:03:02]}  Nc6 {[%clk 0:02:59]} 6. Bc4 {[%clk 0:02:59]}  Qb6 {[%clk 0:02:58]} 7. Nb3 {[%clk 0:02:59]}  e6 {[%clk 0:02:58]} 8. Bf4 {[%clk 0:02:59]}  Ne5 {[%clk 0:02:54]} 9. Be2 {[%clk 0:02:59]}  Be7 {[%clk 0:02:52]} 10. Qd2 {[%clk 0:02:51]}  O-O {[%clk 0:02:50]} 11. O-O-O {[%clk 0:02:51]}  a6 {[%clk 0:02:49]} 12. g4 {[%clk 0:02:47]}  Qc7 {[%clk 0:02:45]} 13. g5 {[%clk 0:02:44]}  Nfd7 {[%clk 0:02:45]} 14. h4 {[%clk 0:02:38]}  b5 {[%clk 0:02:42]} 15. h5 {[%clk 0:02:05]}  b4 {[%clk 0:02:42]} 16. Na4 {[%clk 0:02:02]}  Bb7 {[%clk 0:02:42]} 17. Qxb4 {[%clk 0:01:51]}  Rfc8 {[%clk 0:02:29]} 18. Nc3 {[%clk 0:01:41]}  a5 {[%clk 0:02:29]} 19. Qa4 {[%clk 0:01:38]}  Nb6 {[%clk 0:02:28]} 20. Qd4 {[%clk 0:01:31]}  a4 {[%clk 0:02:27]} 21. Na1 {[%clk 0:01:03]}  a3 {[%clk 0:02:27]} 22. Nb5 {[%clk 0:00:58]}  axb2+ {[%clk 0:02:24]} 23. Qxb2 {[%clk 0:00:57]}  Qb8 {[%clk 0:01:59]} 24. Nxd6 {[%clk 0:00:53]}  Bxd6 {[%clk 0:01:46]} 25. Rxd6 {[%clk 0:00:51]}  Qxd6 {[%clk 0:01:43]} 26. Bxe5 {[%clk 0:00:51]}  Qa3 {[%clk 0:01:25]} 27. g6 {[%clk 0:00:29]}  Qxb2+ {[%clk 0:01:24]} 28. Bxb2 {[%clk 0:00:27]}  Bxe4 {[%clk 0:01:23]} 29. gxf7+ {[%clk 0:00:26]}  Kxf7 {[%clk 0:01:23]} 30. Rg1 {[%clk 0:00:27]}  g6 {[%clk 0:01:16]} 31. hxg6+ {[%clk 0:00:27]}  Bxg6 {[%clk 0:01:12]} 32. Rg3 {[%clk 0:00:22]}  Rxa2 {[%clk 0:01:06]} 33. Rf3+ {[%clk 0:00:23]}  Kg8 {[%clk 0:01:06]} 34. Rb3 {[%clk 0:00:15]}  Nd5 {[%clk 0:00:42]} 35. Rb7 {[%clk 0:00:13]}  Rxa1+ {[%clk 0:00:30]} 36. Bxa1 {[%clk 0:00:13]}  Rxc2+ {[%clk 0:00:30]} 37. Kd1 {[%clk 0:00:13]}  Nc3+ {[%clk 0:00:30]} 38. Bxc3 {[%clk 0:00:12]}  Rxc3 {[%clk 0:00:30]} 39. Kd2 {[%clk 0:00:10]}  Rc5 {[%clk 0:00:27]} 40. Re7 {[%clk 0:00:07]}  Bf5 {[%clk 0:00:24]} 41. Ra7 {[%clk 0:00:07]}  Rd5+ {[%clk 0:00:18]} 42. Ke3 {[%clk 0:00:06]}  Re5+ {[%clk 0:00:18]} 43. Kd2 {[%clk 0:00:07]}  Kf8 {[%clk 0:00:17]} 44. Bc4 {[%clk 0:00:06]}  h5 {[%clk 0:00:16]} 45. Ra1 {[%clk 0:00:02]}  h4 {[%clk 0:00:16]} 46. Rh1 {[%clk 0:00:03]}  Re4 {[%clk 0:00:16]} 47. Bf1 {[%clk 0:00:02]}  Ra4 {[%clk 0:00:14]} 48. f3 {[%clk 0:00:02]}  Ra2+ {[%clk 0:00:13]} 49. Ke3 {[%clk 0:00:03]}  Ra3+ {[%clk 0:00:13]} 50. Kf4 {[%clk 0:00:03]}  Ra4+ {[%clk 0:00:12]} 51. Kg5 {[%clk 0:00:04]}  Ra3 {[%clk 0:00:12]} 52. Rxh4 {[%clk 0:00:03]}  Rxf3 {[%clk 0:00:11]} 53. Be2 {[%clk 0:00:04]}  Rf2 {[%clk 0:00:11]} 54. Bh5 {[%clk 0:00:03]}  Ke7 {[%clk 0:00:10]} 55. Rb4 {[%clk 0:00:04]}  Kd6 {[%clk 0:00:10]} 56. Bf7 {[%clk 0:00:03]}  Rg2+ {[%clk 0:00:09]} 57. Kf4 {[%clk 0:00:03]}  Rg4+ {[%clk 0:00:09]} 58. Kf3 {[%clk 0:00:00]}  Rxb4 {[%clk 0:00:09]} 0-1


[Site "https://www.chess.com"]

[Event "Titled Tuesday Blitz May 9 Early 2023"]
[White "Al-Tarboush, Ward"]
[Black "Csonka, Balazs"]
[WhiteFideId "7601450"]
[BlackFideId "742910"]
[WhiteElo "2265"]
[BlackElo "2404"]
[Result "0-1"]
[Round "05"]
[TimeControl "180+2"]
[Date "2023.05.09"]
[WhiteClock "0:00:08"]
[BlackClock "0:00:08"]

1. d4 {[%clk 0:03:00]}  d6 {[%clk 0:03:00]} 2. e4 {[%clk 0:03:00]}  Nf6 {[%clk 0:02:59]} 3. Nc3 {[%clk 0:03:01]}  c6 {[%clk 0:02:58]} 4. f4 {[%clk 0:02:56]}  Qa5 {[%clk 0:02:57]} 5. Bd3 {[%clk 0:02:55]}  e5 {[%clk 0:02:56]} 6. fxe5 {[%clk 0:02:52]}  dxe5 {[%clk 0:02:56]} 7. dxe5 {[%clk 0:02:53]}  Ng4 {[%clk 0:02:54]} 8. Nf3 {[%clk 0:02:53]}  Nxe5 {[%clk 0:02:51]} 9. Nxe5 {[%clk 0:02:51]}  Qxe5 {[%clk 0:02:52]} 10. O-O {[%clk 0:02:52]}  Bd6 {[%clk 0:02:39]} 11. Bf4 {[%clk 0:02:48]}  Qc5+ {[%clk 0:02:34]} 12. Kh1 {[%clk 0:02:48]}  Bxf4 {[%clk 0:02:35]} 13. Rxf4 {[%clk 0:02:49]}  O-O {[%clk 0:02:34]} 14. Qf3 {[%clk 0:02:48]}  Be6 {[%clk 0:02:25]} 15. Rf1 {[%clk 0:02:47]}  Nd7 {[%clk 0:02:25]} 16. Qg3 {[%clk 0:02:43]}  Rad8 {[%clk 0:02:06]} 17. e5 {[%clk 0:02:36]}  Qxe5 {[%clk 0:01:40]} 18. Ne4 {[%clk 0:02:36]}  h6 {[%clk 0:01:33]} 19. h3 {[%clk 0:01:53]}  Kh8 {[%clk 0:01:18]} 20. Kh2 {[%clk 0:01:45]}  f5 {[%clk 0:00:58]} 21. Nd2 {[%clk 0:00:40]}  g5 {[%clk 0:00:56]} 22. Ra4 {[%clk 0:00:34]}  Qxg3+ {[%clk 0:00:55]} 23. Kxg3 {[%clk 0:00:34]}  a6 {[%clk 0:00:45]} 24. Nf3 {[%clk 0:00:27]}  Nc5 {[%clk 0:00:41]} 25. Ra3 {[%clk 0:00:28]}  Nxd3 {[%clk 0:00:41]} 26. cxd3 {[%clk 0:00:29]}  Kg7 {[%clk 0:00:40]} 27. Ne5 {[%clk 0:00:28]}  Rd5 {[%clk 0:00:35]} 28. Re1 {[%clk 0:00:28]}  Kf6 {[%clk 0:00:34]} 29. Nc4 {[%clk 0:00:28]}  Rfd8 {[%clk 0:00:32]} 30. Rd1 {[%clk 0:00:23]}  Rd4 {[%clk 0:00:27]} 31. Na5 {[%clk 0:00:23]}  R8d7 {[%clk 0:00:26]} 32. Rc3 {[%clk 0:00:23]}  f4+ {[%clk 0:00:24]} 33. Kh2 {[%clk 0:00:23]}  Bf5 {[%clk 0:00:23]} 34. Nb3 {[%clk 0:00:21]}  Rxd3 {[%clk 0:00:21]} 35. Rcxd3 {[%clk 0:00:21]}  Rxd3 {[%clk 0:00:22]} 36. Rxd3 {[%clk 0:00:21]}  Bxd3 {[%clk 0:00:22]} 37. Nc5 {[%clk 0:00:22]}  Bb1 {[%clk 0:00:23]} 38. Nxb7 {[%clk 0:00:21]}  Bxa2 {[%clk 0:00:23]} 39. Na5 {[%clk 0:00:15]}  Bd5 {[%clk 0:00:21]} 40. Nb7 {[%clk 0:00:12]}  Ke5 {[%clk 0:00:20]} 41. Nc5 {[%clk 0:00:12]}  a5 {[%clk 0:00:15]} 42. Nb7 {[%clk 0:00:12]}  a4 {[%clk 0:00:15]} 43. Nc5 {[%clk 0:00:13]}  Bb3 {[%clk 0:00:13]} 44. h4 {[%clk 0:00:14]}  Kd4 {[%clk 0:00:12]} 45. Nd7 {[%clk 0:00:12]}  c5 {[%clk 0:00:09]} 46. h5 {[%clk 0:00:12]}  c4 {[%clk 0:00:09]} 47. Nf6 {[%clk 0:00:13]}  c3 {[%clk 0:00:09]} 48. bxc3+ {[%clk 0:00:13]}  Kxc3 {[%clk 0:00:10]} 49. Ne4+ {[%clk 0:00:13]}  Kb2 {[%clk 0:00:10]} 50. Nc5 {[%clk 0:00:10]}  a3 {[%clk 0:00:08]} 51. Nd3+ {[%clk 0:00:08]}  Kc3 {[%clk 0:00:08]} 0-1


[Site "https://www.chess.com"]

[Event "Titled Tuesday Blitz May 9 Early 2023"]
[White "Djordjevic, Vuk"]
[Black "Lorenzo De La Riva, Lazaro"]
[WhiteFideId "902098"]
[BlackFideId "2268809"]
[WhiteElo "2452"]
[BlackElo "2294"]
[Result "1-0"]
[Round "05"]
[TimeControl "180+2"]
[Date "2023.05.09"]
[WhiteClock "0:00:14"]
[BlackClock "0:00:13"]

1. d4 {[%clk 0:03:00]}  d5 {[%clk 0:02:56]} 2. Bf4 {[%clk 0:03:00]}  Nf6 {[%clk 0:02:54]} 3. e3 {[%clk 0:03:00]}  c5 {[%clk 0:02:55]} 4. c3 {[%clk 0:02:57]}  e6 {[%clk 0:02:54]} 5. Nd2 {[%clk 0:02:57]}  Bd6 {[%clk 0:02:52]} 6. Bg3 {[%clk 0:02:57]}  O-O {[%clk 0:02:49]} 7. Ngf3 {[%clk 0:02:57]}  Qc7 {[%clk 0:02:47]} 8. dxc5 {[%clk 0:02:56]}  Qxc5 {[%clk 0:02:43]} 9. Bd3 {[%clk 0:02:49]}  b6 {[%clk 0:02:32]} 10. Qe2 {[%clk 0:02:45]}  Bb7 {[%clk 0:02:30]} 11. O-O {[%clk 0:02:45]}  Bxg3 {[%clk 0:02:29]} 12. hxg3 {[%clk 0:02:44]}  Nbd7 {[%clk 0:02:28]} 13. Rfd1 {[%clk 0:02:42]}  Rfd8 {[%clk 0:02:19]} 14. e4 {[%clk 0:02:37]}  dxe4 {[%clk 0:02:16]} 15. Nxe4 {[%clk 0:02:36]}  Nxe4 {[%clk 0:02:17]} 16. Bxe4 {[%clk 0:02:36]}  Bxe4 {[%clk 0:02:17]} 17. Qxe4 {[%clk 0:02:37]}  Nf6 {[%clk 0:02:16]} 18. Qe2 {[%clk 0:02:07]}  h6 {[%clk 0:02:09]} 19. Nd4 {[%clk 0:02:05]}  Rd5 {[%clk 0:01:58]} 20. Nb3 {[%clk 0:02:01]}  Qc6 {[%clk 0:01:54]} 21. Rxd5 {[%clk 0:01:50]}  Nxd5 {[%clk 0:01:54]} 22. Rd1 {[%clk 0:01:48]}  Qa4 {[%clk 0:01:50]} 23. Qc2 {[%clk 0:01:45]}  Rc8 {[%clk 0:01:42]} 24. a3 {[%clk 0:01:33]}  a5 {[%clk 0:01:30]} 25. Rd4 {[%clk 0:01:33]}  Qc6 {[%clk 0:01:27]} 26. a4 {[%clk 0:01:33]}  e5 {[%clk 0:01:22]} 27. Rd1 {[%clk 0:01:22]}  Nf6 {[%clk 0:01:04]} 28. Qf5 {[%clk 0:01:15]}  Re8 {[%clk 0:01:02]} 29. Ra1 {[%clk 0:01:04]}  g6 {[%clk 0:01:00]} 30. Qd3 {[%clk 0:01:02]}  Kg7 {[%clk 0:01:00]} 31. Qb5 {[%clk 0:01:01]}  Qd6 {[%clk 0:00:55]} 32. Re1 {[%clk 0:00:57]}  h5 {[%clk 0:00:50]} 33. Qe2 {[%clk 0:00:55]}  Re6 {[%clk 0:00:48]} 34. Nd2 {[%clk 0:00:55]}  Qc6 {[%clk 0:00:45]} 35. Qc4 {[%clk 0:00:55]}  Qd7 {[%clk 0:00:43]} 36. Nf3 {[%clk 0:00:48]}  Ng4 {[%clk 0:00:41]} 37. Nh2 {[%clk 0:00:38]}  Qd2 {[%clk 0:00:37]} 38. Qe2 {[%clk 0:00:36]}  Qxe2 {[%clk 0:00:30]} 39. Rxe2 {[%clk 0:00:37]}  f5 {[%clk 0:00:26]} 40. Nf1 {[%clk 0:00:35]}  e4 {[%clk 0:00:23]} 41. Rd2 {[%clk 0:00:34]}  Kf6 {[%clk 0:00:20]} 42. f3 {[%clk 0:00:24]}  e3 {[%clk 0:00:20]} 43. Re2 {[%clk 0:00:24]}  Nf2 {[%clk 0:00:14]} 44. Nxe3 {[%clk 0:00:21]}  Nd3 {[%clk 0:00:11]} 45. Kf1 {[%clk 0:00:12]}  Kf7 {[%clk 0:00:06]} 46. Nd5 {[%clk 0:00:08]}  Rxe2 {[%clk 0:00:04]} 47. Kxe2 {[%clk 0:00:09]}  Nxb2 {[%clk 0:00:03]} 48. Nxb6 {[%clk 0:00:10]}  Ke6 {[%clk 0:00:03]} 49. Kd2 {[%clk 0:00:11]}  g5 {[%clk 0:00:03]} 50. Kc2 {[%clk 0:00:10]}  f4 {[%clk 0:00:02]} 51. gxf4 {[%clk 0:00:10]}  gxf4 {[%clk 0:00:02]} 52. Kxb2 {[%clk 0:00:10]}  Kf5 {[%clk 0:00:03]} 53. c4 {[%clk 0:00:10]}  Kg5 {[%clk 0:00:03]} 54. c5 {[%clk 0:00:11]}  Kh4 {[%clk 0:00:04]} 55. c6 {[%clk 0:00:11]}  Kg3 {[%clk 0:00:05]} 56. c7 {[%clk 0:00:12]}  Kxg2 {[%clk 0:00:06]} 57. c8=Q {[%clk 0:00:12]}  h4 {[%clk 0:00:07]} 58. Qg4+ {[%clk 0:00:11]}  Kf1 {[%clk 0:00:07]} 59. Qxf4 {[%clk 0:00:11]}  Kg1 {[%clk 0:00:08]} 60. Qxh4 {[%clk 0:00:11]}  Kg2 {[%clk 0:00:09]} 61. f4 {[%clk 0:00:12]}  Kg1 {[%clk 0:00:10]} 62. f5 {[%clk 0:00:12]}  Kg2 {[%clk 0:00:11]} 63. Qf4 {[%clk 0:00:13]}  Kg1 {[%clk 0:00:11]} 64. f6 {[%clk 0:00:13]}  Kg2 {[%clk 0:00:12]} 65. f7 {[%clk 0:00:14]}  Kg1 {[%clk 0:00:13]} 66. f8=Q {[%clk 0:00:14]}  Kh1 {[%clk 0:00:13]} 67. Qg4 {[%clk 0:00:14]}  Kh2 {[%clk 0:00:13]} 68. Qh8# {[%clk 0:00:14]} 1-0


[Site "https://www.chess.com"]

[Event "Titled Tuesday Blitz May 9 Early 2023"]
[White "egorchess95"]
[Black "Rozman, Levy"]
[BlackFideId "2039877"]
[WhiteElo "2546"]
[BlackElo "2376"]
[Result "0-1"]
[Round "05"]
[TimeControl "180+2"]
[Date "2023.05.09"]
[WhiteClock "0:00:07"]
[BlackClock "0:00:38"]

1. e4 {[%clk 0:02:57]}  c6 {[%clk 0:02:46]} 2. d4 {[%clk 0:02:57]}  d5 {[%clk 0:02:47]} 3. e5 {[%clk 0:02:58]}  c5 {[%clk 0:02:47]} 4. dxc5 {[%clk 0:02:58]}  e6 {[%clk 0:02:47]} 5. a3 {[%clk 0:02:50]}  Bxc5 {[%clk 0:02:46]} 6. b4 {[%clk 0:02:50]}  Be7 {[%clk 0:02:46]} 7. Bb2 {[%clk 0:02:49]}  a5 {[%clk 0:02:45]} 8. b5 {[%clk 0:02:49]}  Nd7 {[%clk 0:02:45]} 9. c4 {[%clk 0:02:49]}  Nb6 {[%clk 0:02:40]} 10. Nd2 {[%clk 0:02:33]}  Nh6 {[%clk 0:02:36]} 11. Ngf3 {[%clk 0:02:31]}  O-O {[%clk 0:02:29]} 12. Rc1 {[%clk 0:02:10]}  dxc4 {[%clk 0:02:26]} 13. Nxc4 {[%clk 0:02:10]}  Nd5 {[%clk 0:02:25]} 14. Nd4 {[%clk 0:01:57]}  Bd7 {[%clk 0:02:22]} 15. Be2 {[%clk 0:01:56]}  Rc8 {[%clk 0:02:17]} 16. O-O {[%clk 0:01:55]}  Bc5 {[%clk 0:02:12]} 17. Bf3 {[%clk 0:01:53]}  Bxd4 {[%clk 0:02:07]} 18. Qxd4 {[%clk 0:01:54]}  Bxb5 {[%clk 0:02:07]} 19. Nd6 {[%clk 0:01:38]}  Rxc1 {[%clk 0:02:06]} 20. Rxc1 {[%clk 0:01:38]}  Bc6 {[%clk 0:02:07]} 21. Qa7 {[%clk 0:01:30]}  Nf5 {[%clk 0:01:32]} 22. Nxf5 {[%clk 0:00:57]}  exf5 {[%clk 0:01:32]} 23. Rd1 {[%clk 0:00:57]}  Qb6 {[%clk 0:01:27]} 24. Bd4 {[%clk 0:00:34]}  Qxa7 {[%clk 0:01:16]} 25. Bxa7 {[%clk 0:00:35]}  Nc3 {[%clk 0:01:16]} 26. Rd3 {[%clk 0:00:30]}  Ne4 {[%clk 0:01:13]} 27. Bb6 {[%clk 0:00:28]}  a4 {[%clk 0:01:11]} 28. Bd1 {[%clk 0:00:28]}  Re8 {[%clk 0:01:05]} 29. Bc7 {[%clk 0:00:16]}  Nc5 {[%clk 0:01:01]} 30. Rd4 {[%clk 0:00:15]}  Ne6 {[%clk 0:01:01]} 31. Rc4 {[%clk 0:00:12]}  Nxc7 {[%clk 0:01:00]} 32. Bxa4 {[%clk 0:00:13]}  Bxa4 {[%clk 0:00:57]} 33. Rxa4 {[%clk 0:00:14]}  Rxe5 {[%clk 0:00:55]} 34. f4 {[%clk 0:00:14]}  Rc5 {[%clk 0:00:50]} 35. Ra7 {[%clk 0:00:14]}  b5 {[%clk 0:00:47]} 36. Rb7 {[%clk 0:00:14]}  h5 {[%clk 0:00:45]} 37. Kf2 {[%clk 0:00:14]}  h4 {[%clk 0:00:44]} 38. Ke3 {[%clk 0:00:14]}  Ne6 {[%clk 0:00:41]} 39. g3 {[%clk 0:00:14]}  Rc3+ {[%clk 0:00:38]} 40. Kf2 {[%clk 0:00:15]}  h3 {[%clk 0:00:38]} 41. Rxb5 {[%clk 0:00:14]}  Rc2+ {[%clk 0:00:38]} 42. Kg1 {[%clk 0:00:14]}  Nd4 {[%clk 0:00:38]} 43. Rb8+ {[%clk 0:00:13]}  Kh7 {[%clk 0:00:38]} 44. Kh1 {[%clk 0:00:07]}  Nf3 {[%clk 0:00:38]} 0-1


[Site "https://www.chess.com"]

[Event "Titled Tuesday Blitz May 9 Early 2023"]
[White "HamedWafa4"]
[Black "Concio, Michael Jr."]
[BlackFideId "5217873"]
[WhiteElo "2534"]
[BlackElo "2263"]
[Result "1-0"]
[Round "05"]
[TimeControl "180+2"]
[Date "2023.05.09"]
[WhiteClock "0:00:05"]
[BlackClock "0:00:01"]

1. e4 {[%clk 0:03:00]}  e5 {[%clk 0:02:48]} 2. Nf3 {[%clk 0:03:00]}  Nc6 {[%clk 0:02:49]} 3. Bb5 {[%clk 0:02:59]}  a6 {[%clk 0:02:48]} 4. Ba4 {[%clk 0:02:58]}  Nf6 {[%clk 0:02:48]} 5. O-O {[%clk 0:02:57]}  Nxe4 {[%clk 0:02:46]} 6. d4 {[%clk 0:02:54]}  b5 {[%clk 0:02:46]} 7. Bb3 {[%clk 0:02:53]}  d5 {[%clk 0:02:46]} 8. dxe5 {[%clk 0:02:52]}  Be6 {[%clk 0:02:47]} 9. Be3 {[%clk 0:02:50]}  Nc5 {[%clk 0:02:42]} 10. c3 {[%clk 0:02:44]}  Nxb3 {[%clk 0:02:39]} 11. axb3 {[%clk 0:02:44]}  Be7 {[%clk 0:02:40]} 12. Nbd2 {[%clk 0:02:39]}  O-O {[%clk 0:02:39]} 13. b4 {[%clk 0:02:39]}  a5 {[%clk 0:02:38]} 14. bxa5 {[%clk 0:02:36]}  Nxa5 {[%clk 0:02:37]} 15. b4 {[%clk 0:02:35]}  Nc4 {[%clk 0:02:36]} 16. Nxc4 {[%clk 0:02:32]}  bxc4 {[%clk 0:02:32]} 17. Nd4 {[%clk 0:02:29]}  Qd7 {[%clk 0:02:30]} 18. Qc2 {[%clk 0:02:09]}  h6 {[%clk 0:02:24]} 19. f4 {[%clk 0:02:04]}  f5 {[%clk 0:01:46]} 20. Qb2 {[%clk 0:01:47]}  g6 {[%clk 0:01:39]} 21. Rxa8 {[%clk 0:01:45]}  Rxa8 {[%clk 0:01:39]} 22. Ra1 {[%clk 0:01:46]}  Rxa1+ {[%clk 0:01:28]} 23. Qxa1 {[%clk 0:01:47]}  Kf7 {[%clk 0:01:29]} 24. Qa6 {[%clk 0:01:44]}  Qc8 {[%clk 0:01:09]} 25. b5 {[%clk 0:01:09]}  Bc5 {[%clk 0:00:44]} 26. Qxc8 {[%clk 0:00:53]}  Bxc8 {[%clk 0:00:44]} 27. Nxf5 {[%clk 0:00:52]}  Bxf5 {[%clk 0:00:08]} 28. Bxc5 {[%clk 0:00:52]}  Bd7 {[%clk 0:00:08]} 29. b6 {[%clk 0:00:50]}  cxb6 {[%clk 0:00:09]} 30. Bxb6 {[%clk 0:00:39]}  Bf5 {[%clk 0:00:10]} 31. Kf2 {[%clk 0:00:36]}  Ke6 {[%clk 0:00:10]} 32. h3 {[%clk 0:00:33]}  h5 {[%clk 0:00:10]} 33. Kg3 {[%clk 0:00:33]}  Be4 {[%clk 0:00:10]} 34. Kf2 {[%clk 0:00:19]}  Kf5 {[%clk 0:00:10]} 35. g3 {[%clk 0:00:19]}  Ke6 {[%clk 0:00:11]} 36. g4 {[%clk 0:00:18]}  hxg4 {[%clk 0:00:11]} 37. hxg4 {[%clk 0:00:18]}  Bd3 {[%clk 0:00:12]} 38. Bd4 {[%clk 0:00:16]}  Bc2 {[%clk 0:00:12]} 39. Kg3 {[%clk 0:00:17]}  Bd3 {[%clk 0:00:12]} 40. Kh4 {[%clk 0:00:18]}  Bc2 {[%clk 0:00:11]} 41. Kg5 {[%clk 0:00:18]}  Bd3 {[%clk 0:00:09]} 42. Kh6 {[%clk 0:00:17]}  Kf7 {[%clk 0:00:04]} 43. Kg5 {[%clk 0:00:08]}  Ke6 {[%clk 0:00:04]} 44. Be3 {[%clk 0:00:08]}  Bc2 {[%clk 0:00:04]} 45. Kh6 {[%clk 0:00:09]}  Kf7 {[%clk 0:00:04]} 46. f5 {[%clk 0:00:06]}  gxf5 {[%clk 0:00:05]} 47. g5 {[%clk 0:00:07]}  d4 {[%clk 0:00:03]} 48. cxd4 {[%clk 0:00:06]}  c3 {[%clk 0:00:03]} 49. Bf4 {[%clk 0:00:05]}  Bb3 {[%clk 0:00:03]} 50. Kh7 {[%clk 0:00:05]}  c2 {[%clk 0:00:02]} 51. g6+ {[%clk 0:00:05]}  Ke7 {[%clk 0:00:01]} 52. g7 {[%clk 0:00:05]}  Bg8+ {[%clk 0:00:01]} 1-0


[Site "https://www.chess.com"]